fUST/lending_fUST_20250606
["ID","MTS","AMOUNT","RATE_DAILY","PERIOD"]
[364638075,1749170950863,-440.0,0.00019593,2]
[364638076,1749170950885,-440.0,0.00019593,2]
[364638077,1749170950906,-440.0,0.00019593,2]
[364638078,1749170950927,-151.0,0.00019593,2]
[364638079,1749170950947,-221.87044723,0.00019593,2]
[364638080,1749170950968,-440.0,0.00019593,2]
[364638081,1749170950989,-440.0,0.00019593,2]
[364638082,1749170951010,-440.0,0.00019593,2]
[364638083,1749170951032,-440.0,0.00019593,2]
[364638084,1749170951053,-495.05559834,0.00019594,2]
[364638085,1749170951886,1088.6101071,0.00018861,2]
[364638086,1749170956274,420.0,0.00019592,2]
[364638087,1749170959615,150.0,0.00018421,2]
[364638088,1749170960022,150.0,0.00019299,2]
[364638089,1749170961786,532.43067343,0.00019592,2]
[364638090,1749170964308,440.0,0.00019592,2]
[364638092,1749170971409,575.97,0.00019592,2]
[364638093,1749170975227,440.0,0.00019592,2]
[364638094,1749170976439,440.0,0.00019592,2]
[364638095,1749170977321,178.23606572,0.00019767,2]
[364638096,1749170980393,430.0,0.00019592,2]
[364638097,1749170981480,440.0,0.00019592,2]
[364638098,1749170981563,440.0,0.00019592,2]
[364638099,1749170982676,440.0,0.00019592,2]
[364638100,1749170983538,440.0,0.00019592,2]
[364638101,1749170996423,440.0,0.00019592,2]
[364638102,1749171000179,440.0,0.00019592,2]
[364638103,1749171007281,440.0,0.00019592,2]
[364638104,1749171010215,440.0,0.00019592,2]
[364638105,1749171017562,1169.942438,0.00023425,120]
[364638106,1749171019123,440.0,0.00019592,2]
[364638107,1749171025904,440.0,0.00019592,2]
[364638108,1749171030128,440.0,0.00019592,2]
[364638109,1749171030423,150.0,0.00018423,2]
[364638110,1749171030506,440.0,0.00019592,2]
[364638111,1749171030900,150.0,0.00019301,2]
[364638140,1749171032471,-1148.0,0.00019861,2]
[364638142,1749171032481,-161.99948651,0.00019862,2]
[364638162,1749171032633,-627.92,0.00019862,2]
[364638166,1749171032643,-500.0,0.00019862,2]
[364638168,1749171032653,-500.0,0.00019862,2]
[364638171,1749171032662,-633.80347116,0.00019862,2]
[364638174,1749171032672,-500.0,0.00019862,2]
[364638177,1749171032681,-500.0,0.00019862,2]
[364638181,1749171032690,-638.40187,0.00019862,2]
[364638184,1749171032699,-500.0,0.00019862,2]
[364638186,1749171032709,-500.0,0.00019862,2]
[364638188,1749171032719,-500.0,0.00019862,2]
[364638191,1749171032732,-160.0,0.00019862,2]
[364638194,1749171032741,-440.0,0.00019863,2]
[364638196,1749171032750,-400.55172451,0.00019863,2]
[364638198,1749171032759,-150.84763182,0.00019863,2]
[364638201,1749171032771,-440.0,0.00019863,2]
[364638202,1749171032780,-440.0,0.00019863,2]
[364638204,1749171032789,-500.0,0.00019863,2]
[364638206,1749171032798,-440.0,0.00019863,2]
[364638208,1749171032808,-391.37010593,0.00019863,2]
[364638210,1749171032817,-440.0,0.00019863,2]
[364638212,1749171032826,-440.0,0.00019863,2]
[364638214,1749171032835,-440.0,0.00019863,2]
[364638216,1749171032844,-440.0,0.00019863,2]
[364638218,1749171032853,-440.0,0.00019863,2]
[364638220,1749171032862,-440.0,0.00019863,2]
[364638222,1749171032871,-390.0,0.00019863,2]
[364638224,1749171032881,-440.0,0.00019863,2]
[364638226,1749171032889,-440.0,0.00019863,2]
[364638228,1749171032899,-440.0,0.00019863,2]
[364638230,1749171032908,-440.0,0.00019863,2]
[364638232,1749171032918,-440.0,0.00019863,2]
[364638234,1749171032927,-440.0,0.00019863,2]
[364638236,1749171032936,-440.0,0.00019863,2]
[364638238,1749171032945,-430.0,0.00019863,2]
[364638240,1749171032955,-440.0,0.00019863,2]
[364638242,1749171032966,-440.0,0.00019863,2]
[364638244,1749171032975,-450.0,0.00019863,2]
[364638246,1749171032984,-440.0,0.00019863,2]
[364638248,1749171032993,-440.0,0.00019863,2]
[364638250,1749171033002,-440.0,0.00019863,2]
[364638252,1749171033011,-440.0,0.00019863,2]
[364638254,1749171033021,-440.0,0.00019863,2]
[364638257,1749171033034,-440.0,0.00019863,2]
[364638259,1749171033043,-440.0,0.00019863,2]
[364638261,1749171033053,-440.0,0.00019866,2]
[364638262,1749171033063,-440.0,0.00019866,2]
[364638265,1749171033072,-440.0,0.00019866,2]
[364638267,1749171033083,-440.0,0.00019866,2]
[364638269,1749171033093,-440.0,0.00019866,2]
[364638270,1749171033103,-440.0,0.00019866,2]
[364638271,1749171033112,-440.0,0.00019866,2]
[364638272,1749171033122,-440.0,0.00019866,2]
[364638273,1749171033131,-440.0,0.00019866,2]
[364638274,1749171033141,-440.0,0.00019866,2]
[364638275,1749171033151,-440.0,0.00019866,2]
[364638276,1749171033160,-575.97,0.00019866,2]
[364638277,1749171033170,-440.0,0.00019866,2]
[364638278,1749171033180,-440.0,0.00019866,2]
[364638279,1749171033190,-440.0,0.00019866,2]
[364638280,1749171033199,-440.0,0.00019866,2]
[364638281,1749171033210,-440.0,0.00019866,2]
[364638282,1749171033219,-334.39776051,0.00019866,2]
[364638283,1749171033228,-440.0,0.00019866,2]
[364638284,1749171033237,-440.0,0.00019866,2]
[364638285,1749171033246,-440.0,0.00019866,2]
[364638286,1749171033255,-440.0,0.00019867,2]
[364638287,1749171033264,-440.0,0.00019867,2]
[364638288,1749171033273,-440.0,0.00019867,2]
[364638289,1749171033283,-440.0,0.00019867,2]
[364638290,1749171033292,-440.0,0.00019867,2]
[364638291,1749171033301,-440.0,0.00019867,2]
[364638292,1749171033310,-440.0,0.00019867,2]
[364638293,1749171033319,-430.64514429,0.00019867,2]
[364638294,1749171033328,-420.0,0.00019867,2]
[364638295,1749171033338,-440.0,0.00019867,2]
[364638296,1749171033347,-440.0,0.00019867,2]
[364638297,1749171033357,-440.0,0.00019867,2]
[364638298,1749171033366,-440.0,0.00019867,2]
[364638299,1749171033375,-440.0,0.00019867,2]
[364638300,1749171033384,-440.0,0.00019867,2]
[364638301,1749171033394,-420.0,0.00019867,2]
[364638302,1749171033404,-440.0,0.00019867,2]
[364638303,1749171033413,-420.0,0.00019867,2]
[364638304,1749171033423,-440.0,0.00019867,2]
[364638305,1749171033433,-440.0,0.00019867,2]
[364638306,1749171033442,-430.0,0.00019867,2]
[364638307,1749171033452,-440.0,0.00019867,2]
[364638308,1749171033462,-272.08207253,0.00019867,2]
[364638309,1749171033472,-440.0,0.00019867,2]
[364638310,1749171033483,-157.69,0.00020137,2]
[364638311,1749171033493,-440.0,0.00020137,2]
[364638312,1749171033504,-440.0,0.00020137,2]
[364638313,1749171033514,-440.0,0.00020137,2]
[364638314,1749171033525,-440.0,0.00020137,2]
[364638315,1749171033535,-440.0,0.00020137,2]
[364638316,1749171033545,-440.0,0.00020137,2]
[364638317,1749171033554,-440.0,0.00020137,2]
[364638318,1749171033564,-520.0,0.00020137,2]
[364638319,1749171033574,-440.0,0.00020137,2]
[364638320,1749171033583,-440.0,0.00020137,2]
[364638321,1749171033593,-440.0,0.00020137,2]
[364638322,1749171033603,-440.0,0.00020137,2]
[364638323,1749171033613,-440.0,0.00020137,2]
[364638324,1749171033623,-440.0,0.00020137,2]
[364638325,1749171033633,-440.0,0.00020137,2]
[364638326,1749171033643,-430.0,0.00020137,2]
[364638327,1749171033652,-440.0,0.00020137,2]
[364638328,1749171033662,-440.0,0.00020137,2]
[364638329,1749171033672,-440.0,0.0002014,2]
[364638330,1749171033690,-440.0,0.0002014,2]
[364638331,1749171033702,-440.0,0.0002014,2]
[364638332,1749171033712,-440.0,0.0002014,2]
[364638333,1749171033724,-440.0,0.0002014,2]
[364638334,1749171033736,-440.0,0.0002014,2]
[364638335,1749171033746,-440.0,0.0002014,2]
[364638336,1749171033757,-440.0,0.0002014,2]
[364638337,1749171033768,-440.0,0.0002014,2]
[364638338,1749171033778,-440.0,0.0002014,2]
[364638339,1749171033788,-440.0,0.0002014,2]
[364638340,1749171033798,-575.97,0.0002014,2]
[364638341,1749171033809,-440.0,0.0002014,2]
[364638342,1749171033819,-156.68,0.0002014,2]
[364638343,1749171033829,-440.0,0.0002014,2]
[364638344,1749171033839,-440.0,0.0002014,2]
[364638345,1749171033849,-440.0,0.0002014,2]
[364638346,1749171033858,-440.0,0.0002014,2]
[364638347,1749171033868,-440.0,0.0002014,2]
[364638348,1749171033878,-440.0,0.0002014,2]
[364638349,1749171033889,-440.0,0.00020141,2]
[364638350,1749171033898,-440.0,0.00020141,2]
[364638351,1749171033908,-440.0,0.00020141,2]
[364638352,1749171033918,-440.0,0.00020141,2]
[364638353,1749171033928,-410.0,0.00020141,2]
[364638354,1749171033938,-440.0,0.00020141,2]
[364638355,1749171033949,-560.0,0.00020141,2]
[364638356,1749171033960,-440.0,0.00020141,2]
[364638357,1749171033970,-440.0,0.00020141,2]
[364638358,1749171033980,-440.0,0.00020141,2]
[364638359,1749171033990,-500.0,0.00020161,2]
[364638360,1749171034000,-150.0,0.00020176,2]
[364638361,1749171034010,-198.471339,0.00020187,2]
[364638362,1749171034020,-500.0,0.00020359,2]
[364638363,1749171034030,-500.0,0.00020359,2]
[364638364,1749171034039,-500.0,0.00020359,2]
[364638365,1749171034049,-500.0,0.00020359,2]
[364638366,1749171034058,-440.0,0.00020411,2]
[364638367,1749171034068,-439.11,0.00020411,2]
[364638368,1749171034079,-440.0,0.00020411,2]
[364638369,1749171034088,-440.0,0.00020411,2]
[364638370,1749171034097,-440.0,0.00020411,2]
[364638371,1749171034107,-440.0,0.00020411,2]
[364638372,1749171034117,-440.0,0.00020411,2]
[364638373,1749171034127,-440.0,0.00020411,2]
[364638374,1749171034137,-440.0,0.00020411,2]
[364638375,1749171034146,-440.0,0.00020411,2]
[364638376,1749171034155,-440.0,0.00020411,2]
[364638377,1749171034165,-440.0,0.00020411,2]
[364638378,1749171034175,-440.0,0.00020411,2]
[364638379,1749171034186,-440.0,0.00020411,2]
[364638380,1749171034195,-440.0,0.00020411,2]
[364638381,1749171034205,-440.0,0.00020411,2]
[364638382,1749171034215,-440.0,0.00020414,2]
[364638383,1749171034225,-440.0,0.00020414,2]
[364638384,1749171034235,-440.0,0.00020414,2]
[364638385,1749171034245,-440.0,0.00020414,2]
[364638386,1749171034254,-440.0,0.00020414,2]
[364638387,1749171034265,-440.0,0.00020414,2]
[364638388,1749171034275,-440.0,0.00020414,2]
[364638389,1749171034285,-440.0,0.00020414,2]
[364638390,1749171034295,-440.0,0.00020414,2]
[364638391,1749171034305,-440.0,0.00020414,2]
[364638392,1749171034316,-440.0,0.00020414,2]
[364638393,1749171034326,-575.97,0.00020414,2]
[364638394,1749171034335,-440.0,0.00020414,2]
[364638395,1749171034345,-440.0,0.00020414,2]
[364638396,1749171034355,-395.96235828,0.00020414,2]
[364638397,1749171034365,-440.0,0.00020414,2]
[364638398,1749171034375,-440.0,0.00020414,2]
[364638399,1749171034385,-440.0,0.00020414,2]
[364638400,1749171034394,-440.0,0.00020415,2]
[364638401,1749171034404,-440.0,0.00020415,2]
[364638402,1749171034413,-440.0,0.00020415,2]
[364638403,1749171034423,-440.0,0.00020415,2]
[364638404,1749171034433,-440.0,0.00020415,2]
[364638405,1749171034443,-440.0,0.00020415,2]
[364638406,1749171034452,-440.0,0.00020415,2]
[364638407,1749171034462,-298.7600932,0.00020443,2]
[364638408,1749171034473,-396.94184363,0.00020482,2]
[364638409,1749171034483,-437.28126419,0.00020482,2]
[364638410,1749171034493,-500.0,0.00020482,2]
[364638411,1749171034503,-224.36809267,0.00020482,2]
[364638412,1749171034512,-24900.0,0.00020485,2]
[364638413,1749171034522,-500.0,0.0002049,2]
[364638414,1749171034531,-500.0,0.0002049,2]
[364638415,1749171034541,-500.0,0.0002049,2]
[364638416,1749171034551,-500.02250992,0.0002049,2]
[364638417,1749171034561,-500.0,0.0002049,2]
[364638418,1749171034571,-617.26,0.000206,2]
[364638419,1749171034580,-440.0,0.00020685,2]
[364638420,1749171034590,-440.0,0.00020685,2]
[364638421,1749171034599,-440.0,0.00020685,2]
[364638422,1749171034609,-440.0,0.00020685,2]
[364638423,1749171034618,-440.0,0.00020685,2]
[364638424,1749171034628,-440.0,0.00020685,2]
[364638425,1749171034638,-440.0,0.00020685,2]
[364638426,1749171034647,-440.0,0.00020685,2]
[364638427,1749171034657,-440.0,0.00020685,2]
[364638428,1749171034666,-440.0,0.00020685,2]
[364638429,1749171034676,-440.0,0.00020685,2]
[364638430,1749171034685,-440.0,0.00020685,2]
[364638431,1749171034696,-440.0,0.00020685,2]
[364638432,1749171034706,-440.0,0.00020685,2]
[364638433,1749171034715,-440.0,0.00020685,2]
[364638434,1749171034730,-440.0,0.00020688,2]
[364638435,1749171034741,-440.0,0.00020688,2]
[364638436,1749171034751,-440.0,0.00020688,2]
[364638437,1749171034761,-390.0,0.00020688,2]
[364638438,1749171034771,-390.0,0.00020688,2]
[364638439,1749171034781,-390.0,0.00020688,2]
[364638440,1749171034790,-390.0,0.00020688,2]
[364638441,1749171034799,-440.0,0.00020688,2]
[364638442,1749171034811,-440.0,0.00020688,2]
[364638443,1749171034821,-390.0,0.00020688,2]
[364638444,1749171034831,-440.0,0.00020688,2]
[364638445,1749171034841,-575.97,0.00020688,2]
[364638446,1749171034851,-440.0,0.00020688,2]
[364638447,1749171034860,-440.0,0.00020688,2]
[364638448,1749171034870,-440.0,0.00020688,2]
[364638449,1749171034879,-440.0,0.00020688,2]
[364638450,1749171034889,-390.0,0.00020688,2]
[364638451,1749171034899,-440.0,0.00020689,2]
[364638452,1749171034908,-440.0,0.00020689,2]
[364638453,1749171034918,-440.0,0.00020689,2]
[364638454,1749171034927,-440.0,0.00020689,2]
[364638455,1749171034936,-440.0,0.00020689,2]
[364638456,1749171034946,-500.0,0.00020734,2]
[364638457,1749171034956,-633.48871621,0.000209,4]
[364638458,1749171034965,-345.54840054,0.00020959,2]
[364638459,1749171034975,-440.0,0.00020959,2]
[364638460,1749171034986,-440.0,0.00020959,2]
[364638461,1749171034996,-390.0,0.00020959,2]
[364638462,1749171035006,-440.0,0.00020959,2]
[364638463,1749171035015,-440.0,0.00020959,2]
[364638464,1749171035025,-440.0,0.00020959,2]
[364638465,1749171035035,-440.0,0.00020959,2]
[364638466,1749171035044,-440.0,0.00020959,2]
[364638467,1749171035053,-440.0,0.00020959,2]
[364638468,1749171035062,-440.0,0.00020959,2]
[364638469,1749171035072,-440.0,0.00020959,2]
[364638470,1749171035083,-440.0,0.00020959,2]
[364638471,1749171035093,-440.0,0.00020959,2]
[364638472,1749171035103,-440.0,0.00020962,2]
[364638473,1749171035113,-440.0,0.00020962,2]
[364638474,1749171035123,-390.0,0.00020962,2]
[364638475,1749171035132,-440.0,0.00020962,2]
[364638476,1749171035141,-440.0,0.00020962,2]
[364638477,1749171035151,-575.97,0.00020962,2]
[364638478,1749171035161,-440.0,0.00020962,2]
[364638479,1749171035171,-440.0,0.00020962,2]
[364638480,1749171035180,-440.0,0.00020962,2]
[364638481,1749171035190,-440.0,0.00020962,2]
[364638482,1749171035199,-440.0,0.00020963,2]
[364638483,1749171035210,-440.0,0.00020963,2]
[364638484,1749171035220,-434.01025371,0.00020963,2]
[364638485,1749171035229,-380.0,0.00020963,2]
[364638486,1749171035239,-440.0,0.00020963,2]
[364638487,1749171035248,-631.33859309,0.00021008,2]
[364638488,1749171035257,-1000.0,0.0002103,2]
[364638489,1749171035267,-500.0,0.00021038,2]
[364638490,1749171035276,-633.48871621,0.00021038,4]
[364638491,1749171035286,-150.0,0.00021053,2]
[364638492,1749171035295,-229.48950782,0.00021075,2]
[364638493,1749171035305,-212.94059491,0.00021122,2]
[364638494,1749171035315,-160.0,0.00021126,2]
[364638495,1749171035325,-500.0,0.00021169,2]
[364638496,1749171035334,-343.57506292,0.00021175,2]
[364638497,1749171035343,-440.0,0.00021175,2]
[364638498,1749171035353,-440.0,0.00021175,2]
[364638499,1749171035362,-440.0,0.00021175,2]
[364638500,1749171035372,-440.0,0.00021175,2]
[364638501,1749171035501,-440.0,0.00021175,2]
[364638502,1749171035511,-430.0,0.00021175,2]
[364638503,1749171035522,-440.0,0.00021175,2]
[364638504,1749171035531,-440.0,0.00021175,2]
[364638505,1749171035541,-440.0,0.00021175,2]
[364638506,1749171035550,-440.0,0.00021175,2]
[364638507,1749171035560,-431.14657705,0.00021175,2]
[364638508,1749171035570,-440.0,0.00021175,2]
[364638509,1749171035579,-430.0,0.00021175,2]
[364638510,1749171035589,-440.0,0.00021175,2]
[364638511,1749171035598,-440.0,0.00021175,2]
[364638512,1749171035607,-430.0,0.00021175,2]
[364638513,1749171035617,-633.48871621,0.00021176,4]
[364638514,1749171035626,-440.0,0.00021233,2]
[364638515,1749171035635,-440.0,0.00021233,2]
[364638516,1749171035646,-440.0,0.00021233,2]
[364638517,1749171035656,-390.0,0.00021233,2]
[364638518,1749171035666,-440.0,0.00021233,2]
[364638519,1749171035675,-440.0,0.00021233,2]
[364638520,1749171035685,-440.0,0.00021233,2]
[364638521,1749171035695,-448.22,0.00021233,2]
[364638522,1749171035704,-468.27273572,0.00021233,2]
[364638523,1749171035715,-505.76,0.00021233,2]
[364638524,1749171035730,-440.0,0.00021236,2]
[364638525,1749171035740,-440.0,0.00021236,2]
[364638526,1749171035749,-440.0,0.00021236,2]
[364638527,1749171035759,-440.0,0.00021236,2]
[364638528,1749171035769,-575.97,0.00021236,2]
[364638529,1749171035779,-557.57300131,0.00021236,2]
[364638530,1749171035789,-440.0,0.00021236,2]
[364638531,1749171035799,-440.0,0.00021236,2]
[364638532,1749171035808,-440.0,0.00021236,2]
[364638533,1749171035818,-440.0,0.00021237,2]
[364638534,1749171035827,-440.0,0.00021237,2]
[364638535,1749171035836,-380.0,0.00021237,2]
[364638536,1749171035845,-633.48871621,0.00021314,5]
[364638537,1749171035855,-440.0,0.00021449,2]
[364638538,1749171035864,-440.0,0.00021449,2]
[364638539,1749171035874,-440.0,0.00021449,2]
[364638540,1749171035884,-440.0,0.00021449,2]
[364638541,1749171035893,-440.0,0.00021449,2]
[364638542,1749171035903,-440.0,0.00021449,2]
[364638543,1749171035912,-420.0,0.00021449,2]
[364638544,1749171035921,-440.0,0.00021449,2]
[364638545,1749171035931,-440.0,0.00021449,2]
[364638546,1749171035940,-440.0,0.00021449,2]
[364638547,1749171035949,-633.48871621,0.00021452,5]
[364638548,1749171035960,-440.0,0.00021507,2]
[364638549,1749171035969,-440.0,0.00021507,2]
[364638550,1749171035978,-440.0,0.00021507,2]
[364638551,1749171035988,-440.0,0.00021507,2]
[364638552,1749171035998,-440.0,0.00021507,2]
[364638553,1749171036007,-440.0,0.00021507,2]
[364638554,1749171036019,-440.0,0.0002151,2]
[364638555,1749171036031,-440.0,0.0002151,2]
[364638556,1749171036041,-241.0,0.0002151,2]
[364638557,1749171036050,-575.97,0.0002151,2]
[364638558,1749171036058,-440.0,0.0002151,2]
[364638559,1749171036068,-440.0,0.0002151,2]
[364638560,1749171036078,-440.0,0.0002151,2]
[364638561,1749171036088,-633.48871621,0.0002159,5]
[364638562,1749171036097,-440.0,0.00021723,2]
[364638563,1749171036107,-440.0,0.00021723,2]
[364638564,1749171036116,-440.0,0.00021723,2]
[364638565,1749171036126,-440.0,0.00021723,2]
[364638566,1749171036136,-440.0,0.00021723,2]
[364638567,1749171036145,-440.0,0.00021723,2]
[364638568,1749171036155,-440.0,0.00021723,2]
[364638569,1749171036165,-440.0,0.00021723,2]
[364638570,1749171036174,-440.0,0.00021723,2]
[364638571,1749171036184,-633.48871621,0.00021728,5]
[364638572,1749171036194,-339.73,0.00021781,2]
[364638573,1749171036203,-440.0,0.00021781,2]
[364638574,1749171036214,-440.0,0.00021781,2]
[364638575,1749171036223,-440.0,0.00021781,2]
[364638576,1749171036233,-440.0,0.00021784,2]
[364638577,1749171036243,-440.0,0.00021784,2]
[364638578,1749171036252,-575.97,0.00021784,2]
[364638579,1749171036261,-440.0,0.00021784,2]
[364638580,1749171036271,-440.0,0.00021784,2]
[364638581,1749171036280,-440.0,0.00021784,2]
[364638582,1749171036289,-633.48871621,0.00021866,6]
[364638583,1749171036299,-150.0,0.0002193,2]
[364638584,1749171036308,-207.4,0.00021942,2]
[364638585,1749171036317,-440.0,0.00021997,2]
[364638586,1749171036327,-440.0,0.00021997,2]
[364638587,1749171036337,-440.0,0.00021997,2]
[364638588,1749171036346,-440.0,0.00021997,2]
[364638589,1749171036356,-440.0,0.00021997,2]
[364638590,1749171036366,-440.0,0.00021997,2]
[364638591,1749171036376,-440.0,0.00021997,2]
[364638592,1749171036386,-440.0,0.00021997,2]
[364638593,1749171036396,-440.0,0.00021997,2]
[364638594,1749171036406,-186.0,0.00022,2]
[364638595,1749171036415,-633.48871621,0.00022003,6]
[364638596,1749171036424,-440.0,0.00022055,2]
[364638597,1749171036433,-582.27,0.00022055,2]
[364638598,1749171036442,-400.0,0.00022055,2]
[364638599,1749171036452,-440.0,0.00022058,2]
[364638600,1749171036463,-440.0,0.00022058,2]
[364638601,1749171036473,-575.97,0.00022058,2]
[364638602,1749171036483,-440.0,0.00022058,2]
[364638603,1749171036493,-440.0,0.00022058,2]
[364638604,1749171036502,-440.0,0.00022058,2]
[364638605,1749171036512,-617.26,0.000221,7]
[364638606,1749171036521,-633.48871621,0.00022141,6]
[364638607,1749171036531,-440.0,0.00022271,2]
[364638608,1749171036540,-440.0,0.00022271,2]
[364638609,1749171036550,-440.0,0.00022271,2]
[364638610,1749171036560,-440.0,0.00022271,2]
[364638611,1749171036569,-440.0,0.00022271,2]
[364638612,1749171036579,-440.0,0.00022271,2]
[364638613,1749171036588,-440.0,0.00022271,2]
[364638614,1749171036597,-440.0,0.00022271,2]
[364638615,1749171036606,-440.0,0.00022271,2]
[364638616,1749171036615,-633.48871621,0.00022279,6]
[364638617,1749171036625,-440.0,0.00022329,2]
[364638618,1749171036634,-440.0,0.00022332,2]
[364638619,1749171036643,-440.0,0.00022332,2]
[364638620,1749171036652,-575.97,0.00022332,2]
[364638621,1749171036662,-440.0,0.00022332,2]
[364638622,1749171036671,-337.12,0.00022332,2]
[364638623,1749171036681,-440.0,0.00022332,2]
[364638624,1749171036691,-633.48871621,0.00022417,7]
[364638625,1749171036700,-440.0,0.00022545,2]
[364638626,1749171036712,-440.0,0.00022545,2]
[364638627,1749171036722,-440.0,0.00022545,2]
[364638628,1749171036735,-380.0,0.00022545,2]
[364638629,1749171036744,-440.0,0.00022545,2]
[364638630,1749171036754,-440.0,0.00022545,2]
[364638631,1749171036764,-440.0,0.00022545,2]
[364638632,1749171036774,-440.0,0.00022545,2]
[364638633,1749171036784,-633.48871621,0.00022555,7]
[364638634,1749171036793,-440.0,0.00022603,2]
[364638635,1749171036803,-440.0,0.00022606,2]
[364638636,1749171036813,-440.0,0.00022606,2]
[364638637,1749171036822,-575.97,0.00022606,2]
[364638638,1749171036831,-440.0,0.00022606,2]
[364638639,1749171036841,-440.0,0.00022606,2]
[364638640,1749171036850,-633.48871621,0.00022693,7]
[364638641,1749171036859,-150.0,0.0002281,2]
[364638642,1749171036869,-440.0,0.00022819,2]
[364638643,1749171036878,-385.29,0.00022819,2]
[364638644,1749171036887,-440.0,0.00022819,2]
[364638645,1749171036897,-440.0,0.00022819,2]
[364638646,1749171036906,-440.0,0.00022819,2]
[364638647,1749171036916,-440.0,0.00022819,2]
[364638648,1749171036925,-633.48871621,0.00022831,8]
[364638649,1749171036936,-440.0,0.00022877,2]
[364638650,1749171036948,-440.0,0.0002288,2]
[364638651,1749171036964,-440.0,0.0002288,2]
[364638652,1749171036974,-575.97,0.0002288,2]
[364638653,1749171036983,-440.0,0.0002288,2]
[364638654,1749171036992,-489.01,0.0002288,2]
[364638655,1749171037001,-633.48871621,0.00022969,8]
[364638656,1749171037010,-513.9,0.00023093,2]
[364638657,1749171037020,-440.0,0.00023093,2]
[364638658,1749171037029,-440.0,0.00023093,2]
[364638659,1749171037039,-194.43870299,0.00023093,2]
[364638660,1749171037048,-633.48871621,0.00023107,8]
[364638661,1749171037057,-440.0,0.00023151,2]
[364638662,1749171037066,-440.0,0.00023154,2]
[364638663,1749171037076,-273.1,0.00023154,2]
[364638664,1749171037086,-575.97,0.00023154,2]
[364638665,1749171037095,-440.0,0.00023154,2]
[364638666,1749171037105,-633.48871621,0.00023245,8]
[364638667,1749171037115,-215.0738,0.00023311,2]
[364638668,1749171037124,-440.0,0.00023367,2]
[364638669,1749171037134,-440.0,0.00023367,2]
[364638670,1749171037142,-633.48871621,0.00023383,9]
[364638671,1749171037152,-440.0,0.00023425,2]
[364638672,1749171037161,-440.0,0.00023428,2]
[364638673,1749171037170,-575.97,0.00023428,2]
[364638674,1749171037179,-440.0,0.00023428,2]
[364638675,1749171037189,-633.48871621,0.00023521,9]
[364638676,1749171037198,-617.26,0.000236,7]
[364638677,1749171037207,-440.0,0.00023641,2]
[364638678,1749171037216,-440.0,0.00023641,2]
[364638679,1749171037225,-633.48871621,0.00023659,9]
[364638680,1749171037235,-150.0,0.00023687,2]
[364638681,1749171037244,-440.0,0.00023699,2]
[364638682,1749171037253,-440.0,0.00023702,2]